bitfinex/quotes_ETHUSD_20240731
["timestamp","ask_amount","ask_price","bid_price","bid_amount"]
[1722439800856,3.01877,3312.6,3312.5,0.03189741]
[1722439801463,4.89974298,3312.6,3312.5,0.03189741]
[1722439801620,3.01869,3312.7,3312.5,0.03189741]
[1722439801621,1.88097298,3312.7,3312.5,0.03189741]
[1722439802018,1.88097298,3312.8,3312.5,0.03189741]
[1722439802325,1.56725204,3312.7,3312.6,3.01877]
[1722439802645,1.56725204,3312.8,3312.7,3.01867]
[1722439803062,1.56725204,3313.0,3312.7,3.01867]
[1722439803217,3.01796,3313.5,3312.7,3.01867]
[1722439803418,1.56680675,3313.1,3312.9,3.01844]
[1722439803625,1.56680675,3313.2,3313.0,3.01841]
[1722439803881,10.12557,3313.7,3313.0,3.01841]
[1722439804021,1.56699441,3313.4,3313.2,3.01821]
[1722439804361,1.56699441,3313.5,3313.1,3.01829]
[1722439804572,4.58487441,3313.6,3313.0,3.01834]
[1722439804766,7.1078,3313.7,3313.2,3.01821]
[1722439804767,1.56699441,3313.5,3313.2,3.01821]
[1722439805272,7.1078,3313.7,3313.2,3.01821]
[1722439805273,1.56699441,3313.6,3313.3,3.01811]
[1722439805476,8.67479441,3313.7,3313.3,3.01811]
[1722439805675,8.67479441,3313.7,3313.4,3.01799]
[1722439805831,7.1078,3313.7,3313.4,0.603606]
[1722439806033,3.01796,3313.5,3312.9,5.28964]
[1722439806237,3.01806,3313.4,3312.8,3.01856]
[1722439806432,3.01814,3313.3,3312.5,5.34770741]
[1722439806679,1.56699441,3313.2,3312.5,3.05075741]
[1722439806883,3.01841,3313.0,3312.5,0.03189741]
[1722439807086,3.01877,3312.6,3312.5,0.03189741]
[1722439807234,2.71657,3312.6,3312.5,0.03189741]
[1722439807439,10.29977451,3312.6,3312.5,0.03189741]
[1722439807640,5.71657,3312.6,3312.5,0.03189741]
[1722439807953,8.73534,3312.6,3312.5,0.03189741]
[1722439808152,11.67408688,3312.6,3312.5,0.03189741]
[1722439808455,6.77785063,3312.6,3312.5,0.03189741]
[1722439808654,4.06128063,3312.6,3312.5,0.03189741]
[1722439808889,5.62567742,3312.6,3312.5,0.03189741]
[1722439809088,8.64444742,3312.6,3312.5,0.03189741]
[1722439809386,10.09882063,3312.6,3312.5,0.03189741]
[1722439809538,14.99505688,3312.6,3312.5,0.03189741]
[1722439809738,10.09882063,3312.6,3312.5,0.03189741]
[1722439810277,13.11759063,3312.6,3312.5,0.03189741]
[1722439810497,12.28873391,3312.6,3312.5,0.36468647]
[1722439810671,13.11759063,3312.6,3312.5,0.36468647]
[1722439810834,15.30750391,3312.6,3312.5,0.03189741]
[1722439811039,13.6967043,3312.6,3312.5,0.03189741]
[1722439811282,15.30750924,3312.6,3312.5,0.03189741]
[1722439811488,13.69664908,3312.6,3312.5,0.03189741]
[1722439812244,15.88688577,3312.6,3312.5,0.03189741]
[1722439812442,13.69664908,3312.6,3312.5,0.03189741]
[1722439812798,12.28976712,3312.6,3312.5,0.03189741]
[1722439812974,3.0,3312.6,3312.5,0.03189741]
[1722439813178,6.01877,3312.6,3312.5,0.03189741]
[1722439813492,9.03754,3312.6,3312.5,0.03189741]
[1722439813780,12.05631,3312.6,3312.5,0.03189741]
[1722439813988,9.03754,3312.6,3312.5,0.03189741]
[1722439814142,10.46228856,3312.6,3312.5,0.03189741]
[1722439814488,13.23263216,3312.6,3312.5,0.03189741]
[1722439814658,7.44351856,3312.6,3312.5,0.03189741]
[1722439814884,9.32312784,3312.6,3312.5,0.03189741]
[1722439815056,7.89837928,3312.6,3312.5,0.03189741]
[1722439815255,6.01877,3312.6,3312.5,0.03189741]
[1722439815553,1.87960928,3312.7,3312.5,0.03189741]
[1722439815906,1.56692869,3312.7,3312.5,3.05070741]
[1722439816121,1.56692869,3312.7,3312.6,3.01877]
[1722439816251,1.56689351,3312.8,3312.7,3.01866]
[1722439816457,1.56689351,3312.8,3312.6,0.33294819]
[1722439816678,4.89859222,3313.1,3312.6,0.33294819]
[1722439816679,1.8805274,3312.9,3312.6,0.33294819]
[1722439816895,1.8805274,3313.0,3312.6,0.33294819]
[1722439817071,4.8990974,3312.9,3312.6,0.33294819]
[1722439817373,6.03736,3312.7,3312.6,0.33294819]
[1722439817862,3.01868,3312.7,3312.6,0.33294819]
[1722439818205,3.0,3312.7,3312.6,0.36146509]
[1722439818694,12.71767183,3313.2,3312.6,0.36146509]
[1722439818695,1.88042605,3312.8,3312.6,0.36146509]
[1722439818898,1.5671583,3312.7,3312.6,0.36146509]
[1722439819209,1.56714765,3312.7,3312.6,3.35171819]
[1722439819407,1.88056797,3312.9,3312.6,0.36339262]
[1722439819711,3.0,3313.1,3312.6,3.38216262]
[1722439819712,1.88056797,3313.0,3312.6,3.38216262]
[1722439819907,1.56729082,3312.8,3312.7,3.01868]
[1722439820092,1.56729082,3312.9,3312.6,3.99182145]
[1722439820293,1.56729082,3312.8,3312.7,0.02839438]
[1722439820512,3.01859,3312.8,3312.7,0.02839438]
[1722439820811,3.01868,3312.7,3312.6,0.33294819]
[1722439821013,4.89914039,3312.7,3312.6,0.33294819]
[1722439821229,4.89914039,3312.7,3312.6,0.36132278]
[1722439821379,7.91782039,3312.7,3312.6,0.36132278]
[1722439821576,6.03736,3312.7,3312.6,0.33294819]
[1722439821797,7.91765348,3312.7,3312.6,0.33294819]
[1722439822000,6.03736,3312.7,3312.6,0.33294819]
[1722439822211,8.21920648,3312.7,3312.6,0.33294819]
[1722439822459,6.338896,3312.7,3312.6,0.33294819]
[1722439822579,11.55110783,3312.7,3312.6,0.33294819]
[1722439822786,15.12986107,3312.7,3312.6,0.33294819]
[1722439823093,12.93632924,3312.7,3312.6,0.33294819]
[1722439824029,9.91764924,3312.7,3312.6,0.33294819]
[1722439824234,11.50796069,3312.7,3312.6,0.33294819]
[1722439824582,8.48928069,3312.7,3312.6,0.33294819]
[1722439824783,2.19404745,3312.7,3312.6,0.33294819]
[1722439824985,3.01868,3312.7,3312.6,0.33294819]
[1722439825181,9.631484,3312.7,3312.6,0.3738517]
[1722439825383,7.43743655,3312.7,3312.6,0.33294819]
[1722439825639,9.87731274,3312.7,3312.6,0.33294819]
[1722439825784,15.92542594,3312.7,3312.6,0.33294819]
[1722439826246,3.01911,3312.3,3311.7,3.41959]
[1722439826481,3.01892,3312.5,3311.9,3.01941]
[1722439826482,1.8811736,3312.1,3311.9,3.01941]
[1722439826889,1.8811736,3312.2,3312.0,0.04108737]
[1722439827196,1.8811736,3312.1,3311.8,0.643921]
[1722439827403,1.8811736,3312.1,3311.7,0.4]
[1722439827622,1.56791591,3311.8,3311.7,3.41959]
[1722439827848,1.56791591,3311.8,3311.7,0.4]
[1722439828151,4.9005536,3312.0,3311.7,0.4]
[1722439828321,3.0195,3311.8,3311.7,0.4]
[1722439828517,3.01938,3312.0,3311.7,0.4]
[1722439828841,9.0585,3311.8,3311.7,0.4]
[1722439829051,6.039,3311.8,3311.7,0.4]
[1722439829209,9.039,3311.8,3311.7,0.4]
[1722439829722,9.61789571,3311.8,3311.7,0.4]
[1722439831759,9.039,3311.8,3311.7,0.4]
[1722439831914,11.23331704,3311.8,3311.7,0.4]
[1722439832265,9.61797343,3311.8,3311.7,0.4]
[1722439832421,9.039,3311.8,3311.7,0.4]
[1722439832763,8.79244963,3311.8,3311.7,0.4]
[1722439832926,5.21340422,3312.0,3311.7,0.03206912]
[1722439833111,4.88077972,3311.9,3311.7,0.03206912]
[1722439833313,1.88077972,3312.0,3311.6,2.456]
[1722439833643,1.56743105,3311.8,3311.7,0.28168631]
[1722439833810,1.88077972,3312.0,3311.7,0.03004697]
[1722439834010,2.19407422,3312.2,3311.7,0.03004697]
[1722439834011,4.90027972,3311.8,3311.7,0.03004697]
[1722439834252,3.01969,3311.6,3311.2,3.8e-06]
[1722439834561,1.5671786,3311.3,3311.2,3.8e-06]
[1722439834760,3.01969,3311.6,3311.2,3.8e-06]
[1722439834925,1.88055832,3311.5,3311.2,3.8e-06]
[1722439835267,1.56719863,3311.3,3311.2,3.8e-06]
[1722439835810,4.90039832,3311.5,3311.2,3.8e-06]
[1722439836550,1.88055832,3311.5,3311.2,3.8e-06]
[1722439837150,1.56722144,3311.4,3311.2,0.30202118]
[1722439837310,1.26502144,3311.4,3311.2,0.30202118]
[1722439837709,1.26502144,3311.3,3311.2,0.30202118]
[1722439837962,3.01955,3311.8,3311.2,0.30202118]
[1722439838112,1.56719375,3311.4,3311.2,3.32206118]
[1722439838746,1.56719375,3311.3,3311.2,0.30202118]
[1722439838950,1.56719375,3311.4,3311.2,3.8e-06]
[1722439839451,1.56719375,3311.4,3311.2,3.0200438]
[1722439839956,1.56719375,3311.4,3311.2,3.8e-06]
[1722439841385,3.01984,3311.5,3311.2,3.8e-06]
[1722439841564,1.8805573,3311.6,3311.2,3.8e-06]
[1722439841565,1.56703024,3311.4,3311.2,3.8e-06]
[1722439842223,1.56703024,3311.4,3311.3,3.01996]
[1722439842578,1.56703024,3311.6,3311.3,0.06039531]
[1722439842725,1.56703024,3311.7,3311.6,3.01963]
[1722439842923,1.56703024,3311.8,3311.7,3.01959]
[1722439843250,1.56703024,3311.9,3311.7,3.01959]
[1722439843453,1.56703024,3312.0,3311.8,3.321459]
[1722439843924,1.8805573,3312.2,3311.9,3.01941]
[1722439844127,1.56778082,3312.0,3311.9,3.01941]
[1722439844327,1.56772556,3312.2,3312.0,3.01932]
[1722439844527,1.56772556,3312.2,3312.1,6.03846]
[1722439844758,1.56772556,3312.3,3312.2,3.01914]
[1722439844939,1.56772556,3312.5,3312.3,3.01905]
[1722439845159,7.1078,3312.7,3312.1,6.64825409]
[1722439845160,1.56772556,3312.4,3312.1,6.64825409]
[1722439845443,1.56772556,3312.4,3312.1,0.60988409]
[1722439845750,1.56772556,3312.4,3312.0,3.01931]
[1722439845751,3.01928,3312.1,3311.7,0.2]
[1722439846061,1.56758598,3311.8,3311.7,0.2]
[1722439846256,1.56740446,3311.8,3311.7,0.2]
[1722439846460,4.90061067,3312.0,3311.7,0.2]
[1722439846949,1.88127067,3312.1,3311.8,0.03457282]
[1722439847180,1.56742998,3311.9,3311.7,3.21957]
[1722439847380,1.56742755,3312.0,3311.8,3.05416724]
[1722439847595,1.56742755,3312.1,3311.8,3.05416724]
[1722439847751,1.56742755,3312.2,3312.0,3.01932]
[1722439848092,1.56742755,3312.2,3312.1,0.03459288]
[1722439848388,3.01897,3312.4,3311.8,3.01943]
[1722439848389,1.88091307,3312.4,3311.8,3.01943]
[1722439848603,1.56776964,3311.9,3311.8,3.01943]
[1722439848750,1.56776964,3312.0,3311.8,3.67886451]
[1722439848944,1.56776964,3311.9,3311.8,6.69830451]
[1722439849193,1.56776964,3312.1,3311.9,3.01941]
[1722439849993,1.56776964,3312.0,3311.9,3.01941]
[1722439850546,2.19439858,3312.5,3312.1,3.01923]
[1722439850784,1.56909307,3312.3,3312.2,0.603855]
[1722439850949,1.56909307,3312.3,3312.2,3.01914]
[1722439851149,1.56909307,3312.3,3312.0,3.01923]
[1722439851386,1.5689864,3312.1,3311.8,3.67893451]
[1722439851688,1.56958213,3312.0,3311.9,3.01941]
[1722439852105,1.56958213,3312.1,3312.0,3.01932]
[1722439852391,1.26738213,3312.2,3312.1,6.03846]
[1722439852961,1.88289077,3312.5,3312.0,0.66981645]
[1722439853163,8.99069077,3312.7,3312.5,3.01886]
[1722439853363,8.99069077,3312.7,3312.6,3.01877]
[1722439853563,1.88289077,3312.7,3312.4,6.03782]
[1722439853758,3.01833,3313.1,3312.5,3.01884]
[1722439854029,1.88389466,3312.7,3312.4,3.01887]
[1722439854302,1.88389466,3312.9,3312.8,3.01859]
[1722439854515,0.57908074,3313.0,3312.9,3.0185]
[1722439854516,2.4629754,3313.0,3312.9,3.0185]
[1722439854722,0.57908074,3313.0,3312.9,6.037]
[1722439855015,0.57908074,3313.0,3312.9,6.68514735]
[1722439855523,0.57908074,3313.0,3312.9,7.01812821]
[1722439855665,0.57908074,3313.0,3312.9,0.37368575]
[1722439856360,0.57908074,3313.0,3312.9,0.04070489]
[1722439856562,3.01865,3312.8,3311.7,5.83749]
[1722439856798,1.88238583,3312.8,3311.7,5.83749]
[1722439857003,3.0185,3312.9,3312.0,3.01926]
[1722439857182,1.88239786,3312.6,3312.0,3.01926]
[1722439857381,1.88239786,3312.6,3312.1,3.01917]
[1722439857590,1.88239786,3312.6,3312.2,3.01912]
[1722439857989,1.88239786,3312.5,3312.0,3.01924]
[1722439858304,1.88239786,3312.3,3312.0,6.03855]
[1722439858488,1.88239786,3312.3,3312.1,3.01921]
[1722439858689,1.88239786,3312.5,3312.3,3.01905]
[1722439859078,1.88239786,3312.7,3312.3,3.01905]
[1722439859515,1.88239786,3312.5,3312.1,3.01916]
[1722439859678,1.88239786,3312.4,3311.9,3.01933]
[1722439860021,1.5685611,3312.1,3312.0,3.01932]
[1722439860225,1.56857672,3312.1,3312.0,3.01932]
[1722439860777,1.56857672,3312.1,3311.8,3.01949]
[1722439861004,1.56857672,3312.0,3311.8,3.01949]
[1722439861214,1.56857672,3312.2,3311.9,3.01941]
[1722439861434,1.56857672,3312.2,3311.7,3.41956]
[1722439861575,1.56857672,3311.9,3311.7,3.41956]
[1722439861780,1.56857672,3312.0,3311.9,3.01941]
[1722439862082,1.56853118,3312.2,3312.1,6.03846]
[1722439862385,1.56853118,3312.3,3312.2,6.03828]
[1722439862594,1.56853118,3312.4,3312.3,6.0381]
[1722439862814,1.56853118,3312.6,3312.5,3.01886]
[1722439863308,8.99034901,3312.8,3312.5,3.01886]
[1722439863624,2.59438786,3313.5,3312.7,3.01867]
[1722439863625,1.88252686,3313.0,3312.7,3.01867]
[1722439863781,9.30408134,3313.3,3312.2,5.4134]
[1722439863782,4.90087686,3313.1,3312.2,2.3943]
[1722439863981,1.56856576,3312.6,3312.4,3.01888]
[1722439864529,1.56856576,3312.5,3312.1,3.01921]
[1722439864691,1.56856576,3312.4,3312.1,3.01921]
[1722439865030,1.56856576,3312.4,3312.2,3.01913]
[1722439865615,4.58751576,3312.4,3311.6,5.41394]
[1722439865910,1.56773362,3312.0,3311.6,3.01964]
[1722439866093,1.56773362,3311.8,3311.7,3.41959]
[1722439866297,1.56773362,3311.8,3311.7,6.43918]
[1722439866548,1.88048404,3312.2,3312.0,3.01926]
[1722439866726,9.03748,3312.7,3312.2,3.01914]
[1722439866727,1.88048404,3312.4,3312.2,3.01914]
[1722439866930,1.56711873,3312.3,3312.2,3.01914]
[1722439867210,7.1078,3312.9,3312.3,3.01905]
[1722439867211,1.26491873,3312.4,3312.3,3.01905]
[1722439867416,1.26491873,3312.5,3312.0,5.41577]
[1722439867636,1.88048404,3312.6,3312.0,3.01927]
[1722439867832,1.88048404,3312.6,3312.2,3.01909]
[1722439868034,1.88048404,3312.7,3312.3,0.0603791]
[1722439868245,1.88048404,3312.9,3312.5,3.01881]
[1722439869349,1.88048404,3312.8,3312.3,3.01899]
[1722439869840,1.87957721,3312.8,3312.3,3.01899]
[1722439870140,4.89807721,3312.9,3312.3,3.01899]
[1722439870354,1.87957721,3312.7,3312.3,3.01899]
[1722439870500,4.89835721,3312.6,3312.1,3.01919]
[1722439870702,1.87957721,3312.6,3312.1,3.01915]
[1722439871003,4.89835721,3312.6,3312.0,3.01932]
[1722439871198,1.87957721,3312.6,3312.1,3.01921]
[1722439871449,1.87957721,3312.5,3311.7,0.4]
[1722439871743,1.87957721,3312.8,3312.4,3.01893]
[1722439871946,1.87957721,3312.9,3312.5,3.01881]
[1722439872302,1.87957721,3312.8,3312.5,3.01881]
[1722439872614,1.87957721,3312.8,3312.3,3.01898]
[1722439872814,1.87957721,3312.9,3312.4,3.01894]
[1722439873505,1.87957721,3312.9,3312.5,3.01882]
[1722439873720,6.01839,3313.1,3312.5,3.01882]
[1722439873942,1.87894453,3312.9,3312.5,3.01882]
[1722439874335,1.56580837,3312.6,3312.5,3.01882]
[1722439874647,1.87894453,3312.9,3312.5,3.01882]
[1722439874861,1.56587358,3312.6,3312.5,3.01882]
[1722439875417,1.87894453,3312.9,3312.0,3.01927]
[1722439875617,1.56625311,3312.3,3312.2,3.01905]
[1722439875805,1.56625311,3312.4,3312.3,3.01905]
[1722439876004,1.56629865,3312.4,3312.1,3.01917]
[1722439876210,1.56635489,3312.3,3312.1,3.01917]
[1722439876429,1.56635489,3312.3,3312.2,3.01909]
[1722439876707,1.87962586,3312.6,3312.3,3.01905]
[1722439877417,3.01889,3312.5,3311.9,3.01936]
[1722439877719,1.56683166,3312.2,3312.1,3.01922]
[1722439877919,1.88013569,3312.4,3312.1,3.01922]
[1722439878123,1.88013569,3312.4,3311.9,3.01933]
[1722439878454,1.56700736,3312.1,3312.0,3.01932]
[1722439878806,1.88013569,3312.3,3312.0,3.01932]
[1722439879311,1.88118562,3312.3,3312.0,3.01932]
[1722439879652,1.88118562,3312.4,3312.0,3.01932]
[1722439879868,1.56764442,3312.1,3312.0,3.01925]
[1722439880008,1.56764442,3312.2,3312.1,3.01923]
[1722439880209,1.56764442,3312.3,3312.2,3.01914]
[1722439880441,5.59250894,3313.2,3312.5,3.0188]
[1722439880442,1.88118562,3312.7,3312.5,3.0188]
[1722439880951,1.88118562,3312.7,3312.4,3.0189]
[1722439881153,1.56744123,3312.6,3312.4,3.0189]
[1722439881346,1.56744123,3312.5,3312.4,3.0189]
[1722439881645,1.88118562,3312.7,3312.2,3.01908]
[1722439881849,1.5674661,3312.4,3312.2,3.01908]
[1722439882024,1.5674661,3312.3,3312.2,3.68912155]
[1722439882225,1.5674661,3312.3,3311.9,3.01932]
[1722439882226,1.2652661,3312.3,3311.9,3.01932]
[1722439882464,3.01887,3312.5,3312.0,3.01931]
[1722439882746,1.88079112,3312.2,3312.0,3.01931]
[1722439883159,1.88079112,3312.1,3312.0,3.01931]
[1722439883458,1.88079112,3312.2,3312.0,3.01931]
[1722439883956,1.88079112,3312.3,3312.1,3.01916]
[1722439884141,1.88079112,3312.3,3312.2,3.01914]
[1722439884325,1.88079112,3312.5,3312.2,3.01907]
[1722439884523,1.88079112,3312.3,3312.2,3.01907]
[1722439884725,1.88079112,3312.5,3312.2,3.01907]
[1722439884926,1.88079112,3312.4,3312.2,3.01907]
[1722439885327,1.88079112,3312.5,3312.2,3.01907]
[1722439885525,1.88079112,3312.4,3312.2,3.01907]
[1722439885758,2.19523359,3312.5,3312.0,3.0193]
[1722439885958,1.88151597,3312.2,3312.0,3.01924]
[1722439886160,1.88151597,3312.3,3312.0,3.01924]
[1722439886738,1.88151597,3312.3,3311.8,0.581615]
[1722439886943,1.88151597,3312.3,3312.2,3.01908]
[1722439887156,1.88151597,3312.4,3311.5,3.01975]
[1722439887312,3.01883,3312.6,3311.8,3.01947]
[1722439887313,1.56840313,3311.9,3311.8,3.01947]
[1722439887509,1.56840313,3311.9,3311.8,6.03897]
[1722439887721,1.88151597,3312.1,3311.9,3.01941]
[1722439887921,1.88151597,3312.2,3312.0,3.01923]
[1722439888127,1.88151597,3312.2,3311.9,3.01938]
[1722439888323,1.88151597,3312.2,3311.2,3.8e-06]
[1722439888324,1.88240489,3312.0,3311.8,3.01944]
[1722439888535,1.88240489,3312.0,3311.5,3.01973]
[1722439888536,2.19523359,3312.1,3311.5,3.01973]
[1722439888715,1.56890201,3311.6,3311.5,3.01973]
[1722439888947,1.88268241,3311.7,3311.2,3.8e-06]
[1722439889118,1.88268241,3311.8,3311.7,3.01959]
[1722439890024,2.19523359,3312.1,3311.7,3.01959]
[1722439890244,1.88210028,3311.8,3311.7,3.01959]
[1722439890473,1.88210028,3311.8,3311.4,3.01982]
[1722439890474,2.19523359,3312.0,3311.5,3.01971]
[1722439890648,1.88186111,3311.8,3311.5,3.01971]
[1722439891031,1.88186111,3311.7,3311.5,3.01971]
[1722439891437,1.88186111,3311.7,3311.6,3.01968]
[1722439891677,1.88186111,3311.8,3311.4,3.0198]
[1722439891982,1.88186111,3311.6,3311.2,3.0200538]
[1722439892133,0.49011811,3311.8,3311.2,3.8e-06]
[1722439892134,1.88147429,3311.5,3311.2,3.8e-06]
[1722439892880,1.88147429,3311.4,3311.2,3.8e-06]
[1722439893074,1.88147429,3311.4,3311.2,3.0200438]
[1722439893261,1.88147429,3311.5,3311.2,3.0200438]
[1722439893577,1.88147429,3311.5,3311.2,3.8e-06]
[1722439894380,1.88147429,3311.4,3311.2,3.8e-06]
[1722439894884,1.88147429,3311.3,3311.2,3.8e-06]
[1722439895234,1.88225213,3311.3,3311.2,3.8e-06]
[1722439895433,3.0199,3311.4,3311.2,3.8e-06]
[1722439895630,6.86340608,3311.4,3311.2,3.8e-06]
[1722439895857,3.01996,3311.3,3311.2,3.8e-06]
[1722439896173,4.90158026,3311.3,3311.2,3.8e-06]
[1722439896625,4.9010385,3311.3,3311.2,3.8e-06]
[1722439898119,12.33656811,3311.3,3311.2,3.8e-06]
[1722439898261,15.96217092,3311.3,3311.2,3.8e-06]
[1722439898772,12.08092,3311.0,3310.8,0.09311311]
[1722439899096,15.14769148,3311.0,3310.8,0.09311311]
[1722439899308,18.14769148,3311.0,3310.8,0.09311311]
[1722439900266,20.73613629,3311.0,3310.8,0.09311311]
[1722439900466,20.27630511,3311.0,3310.8,0.09311311]
[1722439901013,22.86336502,3311.0,3310.8,0.09311311]
[1722439901216,22.86336502,3311.0,3310.4,0.005]
[1722439901217,10.78292564,3311.0,3310.4,0.005]
[1722439901432,10.78292564,3311.0,3307.4,2.4418]
[1722439901433,3.02379,3307.1,3306.7,1.26462811]
[1722439901631,3.02379,3307.1,3305.6,2.61669632]
[1722439901632,0.4521957,3307.4,3305.6,0.63178726]
[1722439901838,0.4521957,3307.4,3304.6,3.02601]
[1722439901839,3.02462,3306.2,3304.6,3.02601]
[1722439902020,3.02409,3306.8,3304.3,2.684]
[1722439902220,3.02392,3307.0,3305.1,3.02554]
[1722439902442,3.02512,3305.7,3303.4,0.3024]
[1722439902771,0.6231125,3305.9,3304.2,3.02636]
[1722439902890,3.6479025,3306.1,3305.0,3.0257]
[1722439903090,3.0,3306.3,3305.6,3.02514]
[1722439903290,3.02557,3305.2,3304.5,0.1466238]
[1722439903532,1.24622501,3306.1,3304.5,0.1466238]
[1722439903533,5.69865,3306.2,3304.5,0.1466238]
[1722439903743,6.6472825,3306.7,3305.0,3.02564]
[1722439903905,6.6472825,3306.7,3304.7,3.02594]
[1722439903906,3.02498,3305.9,3304.7,3.02594]
[1722439904105,3.02447,3306.4,3304.7,3.02594]
[1722439904333,3.6479825,3306.0,3304.5,3.1727538]
[1722439904534,3.02516,3305.6,3304.5,0.1466238]
[1722439904734,3.02499,3305.8,3304.8,3.02589]
[1722439904943,3.0,3306.3,3304.8,3.02589]
[1722439904944,3.0,3305.7,3305.0,3.02567]
[1722439905104,3.0,3305.7,3305.1,3.0256]
[1722439905316,3.0,3305.9,3305.0,3.02571]
[1722439905519,3.0,3306.2,3305.0,0.06050985]
[1722439905832,0.4521957,3306.8,3305.8,3.02496]
[1722439906144,0.4521957,3306.8,3304.6,3.02607]
[1722439906145,0.28261957,3306.7,3306.3,3.02444]
[1722439906345,3.02352,3307.4,3306.1,3.02464]
[1722439906346,3.02374,3307.2,3306.1,3.02464]
[1722439906561,2.4275,3307.6,3305.9,3.02488]
[1722439906752,2.4275,3307.6,3306.6,3.02424]
[1722439907046,2.4275,3307.6,3305.9,3.02481]
[1722439907205,2.4275,3307.6,3306.3,3.02444]
[1722439907408,3.02363,3307.3,3305.2,3.0]
[1722439907603,3.02363,3307.3,3306.4,3.02439]
[1722439907604,3.02364,3307.3,3306.4,3.02439]
[1722439907837,3.02372,3307.2,3306.4,3.02439]
[1722439908019,0.24275,3307.5,3306.1,3.02464]
[1722439908227,0.24275,3307.5,3305.9,3.02483]
[1722439908439,0.267025,3307.4,3307.0,3.02381]
[1722439908756,0.4521957,3307.8,3306.6,3.02425]
[1722439908953,3.02343,3307.5,3306.7,3.02415]
[1722439909187,3.02324,3307.7,3306.5,3.02433]
[1722439909350,3.02334,3307.6,3306.8,3.02406]
[1722439909768,3.02334,3307.6,3306.1,35.0]
[1722439909769,3.02326,3307.7,3306.9,3.02389]
[1722439910076,0.34754557,3307.6,3306.9,3.02389]
[1722439910246,0.34754557,3307.6,3306.7,3.02413]
[1722439910247,0.34754557,3307.6,3306.8,0.06047833]
[1722439910446,0.34754557,3307.6,3306.7,3.02413]
[1722439910850,0.34754557,3307.6,3306.0,6.327203]
[1722439910851,3.02392,3307.0,3306.0,6.327203]
[1722439911036,3.02372,3307.2,3306.2,3.02461]
[1722439911234,3.02361,3307.3,3306.2,3.02461]
[1722439911491,3.02354,3307.4,3306.6,3.02424]
[1722439911780,0.34754557,3307.6,3306.3,3.02452]
[1722439911990,3.02398,3306.9,3306.1,3.02469]
[1722439912287,3.02417,3306.7,3306.0,3.0248]
[1722439912904,3.02435,3306.5,3305.8,3.02493]
[1722439913184,3.02416,3306.7,3305.9,3.02487]
[1722439913492,3.02398,3306.9,3306.2,3.02459]
[1722439913782,3.02394,3307.0,3304.9,3.02575]
[1722439914076,3.0246,3306.3,3305.5,3.02523]
[1722439914276,3.02458,3306.3,3305.5,3.02524]
[1722439914474,3.02413,3306.8,3305.8,3.02491]
[1722439914683,0.302413,3306.7,3305.8,3.0249]
[1722439915039,3.02433,3306.6,3305.8,3.0249]
[1722439915455,0.06702142,3305.9,3305.7,3.02507]
[1722439915687,0.06702142,3305.9,3305.5,3.0252]
[1722439915901,0.06702142,3305.9,3304.9,3.0]
[1722439915902,3.025,3305.8,3304.9,3.0]
[1722439916200,3.09219142,3305.6,3305.0,0.3]
[1722439916493,3.09219142,3305.6,3304.5,0.1466238]
[1722439916494,0.06702142,3305.6,3304.9,3.02579]
[1722439916674,0.06702142,3305.6,3305.3,3.02543]
[1722439916837,0.06702142,3305.6,3305.5,3.02526]
[1722439917556,0.06702142,3305.6,3305.3,3.02544]
[1722439917856,0.06702142,3305.6,3304.9,0.06050605]
[1722439918056,3.02435,3306.5,3304.9,0.06050605]
[1722439918057,3.02434,3306.5,3305.6,3.02514]
[1722439918288,3.02486,3306.0,3305.2,3.02551]
[1722439918584,3.02552,3305.3,3304.6,3.02601]
[1722439918786,3.02581,3304.9,3304.5,0.1466238]
[1722439918983,3.02558,3305.2,3304.5,0.1466238]
[1722439919287,0.06702142,3304.6,3304.5,0.1466238]
[1722439919993,0.06702142,3304.6,3304.5,3.1727938]
[1722439920192,0.06702142,3304.6,3304.5,6.1989638]
[1722439920840,0.06702142,3304.6,3304.5,3.1727938]
[1722439921154,0.06702142,3304.6,3304.5,0.1466238]
[1722439921571,0.37632856,3304.6,3304.5,0.1466238]
[1722439921742,0.06702142,3304.6,3304.5,3.1727938]
[1722439922268,0.06702142,3304.6,3304.5,6.25948311]
[1722439922482,0.06702142,3304.6,3304.5,9.28565311]
[1722439922688,0.06702142,3304.6,3304.5,15.31182311]
[1722439922984,1.42e-06,3304.6,3304.5,16.78248611]
[1722439923186,1.42e-06,3304.6,3304.5,55.66105611]
[1722439923384,1.42e-06,3304.6,3304.5,55.35865611]
[1722439923844,0.302435,3306.4,3306.3,3.02452]
[1722439924047,12.43,3306.9,3306.4,3.02441]
[1722439924490,10.13174,3307.0,3306.2,3.02461]
[1722439924651,10.13174,3307.0,3306.1,3.02471]
[1722439924652,3.02421,3306.7,3306.1,3.02471]
[1722439924858,7.1078,3307.0,3305.4,3.02528]
[1722439925094,3.02469,3306.2,3305.4,3.02528]
[1722439925309,0.302469,3306.1,3305.1,3.0]
[1722439925463,7.1078,3306.4,3305.8,3.02492]
[1722439925648,7.1078,3306.4,3305.9,3.02488]
[1722439925960,7.1078,3306.4,3306.1,3.02471]
[1722439926175,12.43,3306.8,3305.5,0.06049469]
[1722439926386,2.4565,3307.1,3306.5,3.0243]
[1722439926694,2.3134,3307.7,3307.1,3.02378]
[1722439926902,5.33671,3307.7,3306.9,3.02397]
[1722439927246,2.0112,3307.7,3307.1,3.02379]
[1722439927455,2.0112,3307.7,3307.2,3.02362]
[1722439927757,0.20112,3307.6,3307.3,3.02355]
[1722439927980,3.02298,3308.0,3307.4,3.02352]
[1722439928175,3.02279,3308.2,3307.6,3.02332]
[1722439928375,1.32928751,3308.7,3307.7,3.02323]
[1722439928697,3.02271,3308.3,3307.7,3.02323]
[1722439928897,3.02243,3308.6,3307.1,3.02378]
[1722439929102,3.02303,3308.0,3307.4,3.02352]
[1722439929416,0.43517175,3308.5,3306.3,6.594]
[1722439929554,3.02266,3308.4,3307.8,3.02312]
[1722439929751,3.02257,3308.5,3307.9,3.02305]
[1722439929951,4.35167751,3308.7,3307.9,3.02305]
[1722439930163,3.02243,3308.6,3308.0,3.02297]
[1722439930353,3.02243,3308.6,3307.7,3.02323]
[1722439930548,0.43517175,3308.5,3307.7,3.02323]
[1722439930801,0.43517175,3308.5,3307.9,3.023]
[1722439931794,3.45769175,3308.5,3307.7,6.04641]